bitfinex-derivatives/quotes_BNBF0:USTF0_20250524
["timestamp","ask_amount","ask_price","bid_price","bid_amount"]
[1748057870272,1.10866977,663.73,663.51,1.489]
[1748057873672,1.10866977,663.96,663.51,1.489]
[1748057878174,1.10866977,663.99,663.51,1.489]
[1748057880975,1.10866977,664.0,663.51,1.489]
[1748057882377,1.10866977,664.0,663.52,1.29]
[1748057884074,0.30120028,664.01,663.52,1.29]
[1748057886581,1.10866977,663.98,663.52,1.29]
[1748057889982,1.10866977,663.97,663.52,1.29]
[1748057892487,1.10866977,663.97,663.53,1.168]
[1748057893287,1.10866977,663.99,663.53,1.168]
[1748057896690,1.10866977,664.0,663.53,1.168]
[1748057898492,1.10866977,664.0,663.54,1.425]
[1748057900198,0.30120028,664.01,663.54,1.425]
[1748057902996,0.30120028,664.01,663.55,1.306]
[1748057905798,0.30120028,664.01,663.56,1.004]
[1748057906300,1.40987005,664.01,663.56,1.004]
[1748057908603,0.30120028,664.01,663.56,1.004]
[1748057918816,1.10866977,664.06,663.56,1.004]
[1748057919615,1.10866977,664.06,663.56,2.24]
[1748057919916,1.10866977,664.06,663.56,3.593]
[1748057921316,1.10866977,664.14,663.56,3.593]
[1748057923721,1.10866977,664.14,663.56,4.808]
[1748057924319,1.10866977,664.15,663.56,4.808]
[1748057927217,1.10866977,664.12,663.56,4.808]
[1748057930726,1.10866977,664.24,663.56,4.808]
[1748057934728,1.10866977,664.27,663.56,4.808]
[1748057937427,1.10866977,664.17,663.56,4.808]
[1748057943937,1.10866977,664.19,663.56,4.808]
[1748057948141,1.10866977,664.16,663.56,4.808]
[1748057951339,1.10866977,664.15,663.56,4.808]
[1748057953840,1.10866977,664.14,663.56,4.808]
[1748057956848,1.10866977,664.16,663.56,4.808]
[1748057960750,1.10866977,664.12,663.56,4.808]
[1748057964465,1.10866977,664.08,663.56,4.808]
[1748057967767,1.10866977,664.1,663.56,4.808]
[1748057970473,1.10866977,664.11,663.56,4.808]
[1748057976680,1.10866977,664.1,663.56,4.808]
[1748057980286,1.10866977,664.08,663.56,4.808]
[1748057983284,1.10866977,664.07,663.56,4.808]
[1748057990186,1.10866977,664.06,663.56,4.808]
[1748057992790,1.10866977,664.04,663.56,4.808]
[1748057996288,1.10866977,664.03,663.56,4.808]
[1748057999491,1.10866977,664.02,663.56,5.83512795]
[1748058006499,1.10866977,663.95,663.56,4.808]
[1748058009999,1.10866977,663.96,663.56,4.808]
[1748058012411,1.10866977,663.93,663.56,4.808]
[1748058012706,1.10866977,663.93,663.56,3.455]
[1748058015210,1.10866977,663.95,663.56,3.455]
[1748058016310,1.10866977,663.95,663.56,4.656]
[1748058018912,1.10866977,663.94,663.56,4.656]
[1748058029020,1.10866977,663.93,663.56,4.656]
[1748058032128,1.10866977,663.91,663.56,4.656]
[1748058034624,1.10866977,663.93,663.56,4.656]
[1748058037826,1.10866977,664.16,663.56,4.656]
[1748058040730,1.10866977,664.17,663.56,4.656]
[1748058044336,1.10866977,664.17,663.56,5.68312795]
[1748058048342,1.10866977,664.23,663.57,1.02712795]
[1748058051245,1.10866977,664.23,663.58,0.969]
[1748058051439,1.10866977,664.23,663.58,2.408]
[1748058051635,1.10866977,664.24,663.58,2.408]
[1748058052042,1.10866977,664.24,663.59,1.492]
[1748058052546,1.10866977,664.24,663.6,1.572]
[1748058055049,1.10866977,664.23,663.6,1.572]
[1748058057247,1.10866977,664.19,663.6,1.572]
[1748058060053,1.10866977,664.2,663.6,1.572]
[1748058063157,1.10866977,664.11,663.6,1.572]
[1748058066066,1.10866977,664.08,663.6,1.572]
[1748058066667,1.10866977,664.08,663.61,1.778]
[1748058068561,1.10866977,664.07,663.61,1.778]
[1748058071675,1.10866977,664.02,663.61,1.778]
[1748058074670,1.10866977,664.01,663.61,1.778]
[1748058076477,1.10866977,664.01,663.62,1.101]
[1748058077568,1.10866977,664.02,663.62,1.101]
[1748058079977,1.10866977,664.0,663.62,1.101]
[1748058083281,1.10866977,663.98,663.62,1.101]
[1748058090483,1.10866977,663.98,663.63,1.557]
[1748058092984,1.10866977,663.97,663.63,1.557]
[1748058097186,1.10866977,663.96,663.63,1.557]
[1748058100789,1.10866977,663.98,663.63,1.557]
[1748058102390,1.10866977,663.98,663.64,1.433]
[1748058104790,1.10866977,664.01,663.64,1.433]
[1748058108199,1.10866977,664.0,663.64,1.433]
[1748058109799,1.10866977,664.0,663.65,0.968]
[1748058111799,1.10866977,663.97,663.65,0.968]
[1748058115702,1.10866977,663.9,663.65,0.968]
[1748058118606,1.10866977,663.89,663.65,0.968]
[1748058122210,1.10866977,663.86,663.65,0.968]
[1748058122512,1.10866977,663.86,663.66,1.203]
[1748058125414,1.10866977,663.85,663.66,1.203]
[1748058126519,1.10866977,663.85,663.67,1.26]
[1748058128924,1.10866977,663.83,663.67,1.26]
[1748058132127,1.10866977,663.85,663.67,1.26]
[1748058134827,1.10866977,663.86,663.67,1.26]
[1748058137234,1.10866977,663.87,663.67,1.26]
[1748058138531,1.10866977,663.87,663.68,1.494]
[1748058140134,1.10866977,663.86,663.68,1.494]
[1748058143938,1.10866977,663.85,663.68,1.494]
[1748058146940,1.10866977,663.86,663.68,1.494]
[1748058149640,1.10866977,663.89,663.68,1.494]
[1748058152342,1.10866977,663.87,663.68,1.494]
[1748058156647,1.10866977,663.83,663.68,1.494]
[1748058156844,1.10866977,663.83,663.68,2.806]
[1748058159446,1.10866977,663.8,663.68,2.806]
[1748058162148,1.10866977,663.78,663.68,2.806]
[1748058165751,1.10866977,663.72,663.68,2.806]
[1748058169158,1.10866977,663.74,663.68,2.806]
[1748058169558,1.10866977,663.74,663.68,1.312]
[1748058171560,1.10866977,663.73,663.68,1.312]
[1748058175863,1.10866977,663.71,663.68,1.312]
[1748058182366,1.10866977,663.72,663.68,1.312]
[1748058182767,1.10866977,663.72,663.56,1.616]
[1748058186570,1.10866977,663.73,663.56,1.616]
[1748058189977,1.10866977,663.72,663.56,1.616]
[1748058200390,1.10866977,663.75,663.56,1.616]
[1748058203492,1.10866977,663.74,663.56,1.616]
[1748058206698,1.10866977,663.73,663.56,1.616]
[1748058210097,1.10866977,663.68,663.56,1.616]
[1748058214101,1.10866977,663.66,663.56,1.616]
[1748058218007,1.10866977,663.65,663.56,1.616]
[1748058222410,1.10866977,663.62,663.56,1.616]
[1748058226410,1.10866977,663.64,663.56,1.616]
[1748058230419,1.10866977,663.64,663.47,2.956]
[1748058232623,1.10866977,663.64,663.47,4.239]
[1748058235022,1.10866977,663.61,663.47,4.239]
[1748058238430,1.10866977,663.63,663.47,4.239]
[1748058242033,1.10866977,663.67,663.47,4.239]
[1748058244034,1.10866977,663.68,663.47,4.239]
[1748058246534,1.10866977,663.69,663.47,4.239]
[1748058248731,1.10866977,663.69,663.47,2.956]
[1748058250336,1.10866977,663.7,663.47,2.956]
[1748058251035,1.10866977,663.7,663.48,1.414]
[1748058253647,1.10866977,663.87,663.48,1.414]
[1748058256550,1.10866977,663.98,663.48,1.414]
[1748058256750,1.10866977,663.98,663.49,1.309]
[1748058259754,1.10866977,664.02,663.49,1.309]
[1748058261554,1.10866977,664.02,663.5,1.84]
[1748058265760,1.10866977,664.0,663.5,1.84]
[1748058269365,1.10866977,663.99,663.5,1.84]
[1748058269870,1.10866977,663.99,663.51,1.048]
[1748058273269,1.10866977,663.99,663.52,1.201]
[1748058276578,1.10866977,664.03,663.52,1.201]
[1748058280075,0.26206398,664.62,663.52,1.201]
[1748058280076,1.47822637,664.16,663.52,1.201]
[1748058283883,1.47822637,664.21,663.52,1.201]
[1748058286286,1.47822637,664.21,663.53,1.129]
[1748058287484,1.47822637,664.19,663.53,1.129]
[1748058290991,1.47822637,664.16,663.53,1.129]
[1748058291191,1.47822637,664.16,663.54,1.416]
[1748058293099,1.47822637,664.16,663.55,1.556]
[1748058293593,1.47822637,664.12,663.55,1.556]
[1748058296995,1.47822637,664.13,663.55,1.556]
[1748058299297,1.47822637,664.12,663.55,1.556]
[1748058300799,1.47822637,664.12,663.56,1.611]
[1748058303399,0.26206398,664.62,663.56,1.611]
[1748058303400,1.47822637,664.1,663.56,1.611]
[1748058306395,1.47822637,664.08,663.56,1.611]
[1748058308302,1.47822637,664.08,663.56,2.808]
[1748058309906,1.47822637,664.05,663.56,2.808]
[1748058310705,1.47822637,664.05,663.56,4.791]
[1748058312004,1.47822637,664.02,663.56,4.791]
[1748058312201,1.47822637,664.02,663.56,6.264]
[1748058314611,1.47822637,663.93,663.56,6.264]
[1748058318120,1.47822637,663.95,663.56,6.264]
[1748058321223,1.47822637,663.92,663.56,6.264]
[1748058321725,1.47822637,663.92,663.56,4.281]
[1748058324028,2.21733955,664.07,663.56,4.281]
[1748058324029,1.47822637,663.88,663.56,4.281]
[1748058326932,1.47822637,663.98,663.56,4.281]
[1748058330530,1.47822637,663.89,663.56,4.281]
[1748058333731,1.47822637,663.9,663.56,4.281]
[1748058336441,1.47822637,663.9,663.56,2.67]
[1748058337436,1.47822637,663.92,663.56,2.67]
[1748058340252,1.47822637,663.92,663.56,1.197]
[1748058340447,1.47822637,663.84,663.56,1.197]
[1748058343250,4.00597932,664.62,663.56,1.197]
[1748058343251,1.47822637,663.97,663.56,1.197]
[1748058347253,1.47822637,663.94,663.56,1.197]
[1748058350155,1.47822637,663.98,663.56,1.197]
[1748058353358,1.47822637,663.99,663.56,1.197]
[1748058356060,1.47822637,663.98,663.56,1.197]
[1748058359666,1.47822637,664.01,663.56,1.197]
[1748058361368,1.47822637,664.01,663.31,1.475]
[1748058361962,1.47822637,664.01,663.31,2.798]
[1748058362869,1.47822637,664.08,663.31,2.798]
[1748058365171,1.47822637,664.08,663.31,4.528]
[1748058366668,1.47822637,664.07,663.31,4.528]
[1748058369375,1.47822637,664.0,663.31,4.528]
[1748058372376,1.47822637,663.93,663.31,4.528]
[1748058375378,1.47822637,664.0,663.31,4.528]
[1748058377778,1.47822637,663.99,663.31,4.528]
[1748058381180,1.47822637,663.92,663.31,4.528]
[1748058390491,1.47822637,663.73,663.31,4.528]
[1748058393491,1.47822637,663.78,663.31,4.528]
[1748058395792,1.47822637,663.81,663.31,4.528]
[1748058398996,1.47822637,663.84,663.31,4.528]
[1748058402594,1.47822637,663.82,663.31,4.528]
[1748058405096,1.47822637,663.85,663.31,4.528]
[1748058408697,1.47822637,663.84,663.31,4.528]
[1748058415408,1.47822637,663.76,663.31,4.528]
[1748058418509,1.47822637,663.75,663.31,4.528]
[1748058424006,1.47822637,663.73,663.31,4.528]
[1748058427109,1.47822637,663.77,663.31,4.528]
[1748058429712,1.47822637,663.73,663.31,4.528]
[1748058432717,1.47822637,663.7,663.31,4.528]
[1748058438523,1.47822637,663.72,663.31,4.528]
[1748058445425,1.47822637,663.7,663.31,4.528]
[1748058448528,1.47822637,663.63,663.31,4.528]
[1748058451732,1.47822637,663.64,663.31,4.528]
[1748058455135,1.47822637,663.98,663.31,4.528]
[1748058458830,1.47822637,663.96,663.31,4.528]
[1748058461341,1.47822637,664.01,663.31,4.528]
[1748058464146,1.47822637,664.0,663.31,4.528]
[1748058469854,1.47822637,663.96,663.31,4.528]
[1748058475257,1.47822637,663.99,663.31,4.528]
[1748058476665,1.47822637,664.0,663.31,4.528]
[1748058483576,1.47822637,664.01,663.31,4.528]
[1748058486375,1.47822637,663.99,663.31,4.528]
[1748058489678,1.47822637,664.0,663.31,4.528]
[1748058492479,1.47822637,664.01,663.31,4.528]
[1748058494478,1.47822637,663.99,663.31,4.528]
[1748058497085,1.47822637,663.97,663.31,4.528]
[1748058499285,1.47822637,663.87,663.31,4.528]
[1748058502082,1.47822637,663.86,663.31,4.528]
[1748058505695,1.47822637,663.72,663.31,4.528]
[1748058508897,1.47822637,663.73,663.31,4.528]
[1748058511692,1.47822637,663.72,663.31,4.528]
[1748058515102,1.47822637,663.69,663.31,4.528]
[1748058517807,1.47822637,663.67,663.31,4.528]
[1748058521006,1.47822637,663.71,663.31,4.528]
[1748058524008,1.47822637,664.0,663.31,4.528]
[1748058527711,1.47822637,663.96,663.31,4.528]
[1748058530916,1.47822637,663.98,663.31,4.528]
[1748058534020,1.47822637,663.95,663.31,4.528]
[1748058538323,1.47822637,663.91,663.31,4.528]
[1748058541227,1.47822637,663.84,663.31,4.528]
[1748058543929,1.47822637,663.81,663.31,4.528]
[1748058547231,1.47822637,663.78,663.31,4.528]
[1748058549732,1.47822637,663.74,663.31,4.528]
[1748058553337,1.47822637,663.66,663.31,4.528]
[1748058556539,1.47822637,663.64,663.31,4.528]
[1748058559337,1.47822637,663.62,663.31,4.528]
[1748058562643,1.47822637,663.6,663.31,4.528]
[1748058565748,1.47822637,663.59,663.31,4.528]
[1748058569550,1.47822637,663.64,663.31,4.528]
[1748058573046,1.47822637,663.65,663.31,4.528]
[1748058575249,1.47822637,663.64,663.31,4.528]
[1748058577855,1.47822637,663.65,663.31,4.528]
[1748058581056,1.47822637,663.64,663.31,4.528]
[1748058584457,1.47822637,663.66,663.31,4.528]
[1748058591363,1.47822637,663.67,663.31,4.528]
[1748058594163,1.47822637,663.61,663.31,4.528]
[1748058596568,1.47822637,663.59,663.31,4.528]
[1748058603070,1.47822637,663.56,663.31,4.528]
[1748058606674,3.74391534,664.23,663.31,4.528]
[1748058606675,1.47822637,663.62,663.31,4.528]
[1748058610279,1.47822637,663.59,663.31,4.528]
[1748058612481,1.47822637,663.57,663.31,4.528]
[1748058615381,1.47822637,663.51,663.31,4.528]
[1748058622484,1.47822637,663.78,663.31,4.528]
[1748058625992,1.47822637,663.85,663.31,4.528]
[1748058628994,1.47822637,663.96,663.31,4.528]
[1748058631798,1.47822637,664.03,663.31,4.528]
[1748058634799,1.47822637,664.18,663.31,4.528]
[1748058637098,1.47822637,664.19,663.31,4.528]
[1748058637296,0.30112318,664.18,663.31,4.528]
[1748058644103,1.47822637,664.17,663.31,4.528]
[1748058644307,0.30113225,664.16,663.31,4.528]
[1748058648208,1.47822637,664.09,663.31,4.528]
[1748058651210,1.47822637,664.11,663.31,4.528]
[1748058653911,1.47822637,664.08,663.31,4.528]
[1748058656906,0.30113225,664.16,663.31,4.528]
[1748058681131,1.47822637,664.14,663.31,4.528]
[1748058684540,0.30113225,664.16,663.31,4.528]
[1748058687440,1.47822637,664.07,663.31,4.528]
[1748058690745,1.47822637,664.03,663.31,4.528]
[1748058696441,1.47822637,664.0,663.31,4.528]
[1748058702054,1.47822637,664.04,663.31,4.528]
[1748058704857,1.47822637,664.05,663.31,4.528]
[1748058707760,1.47822637,664.04,663.31,4.528]
[1748058710262,1.47822637,664.06,663.31,4.528]
[1748058713662,1.77935862,664.16,663.31,4.528]
[1748058715571,1.47822637,664.16,663.31,4.528]
[1748058716670,1.47822637,664.16,663.33,1.36952527]
[1748058716872,1.47822637,664.22,663.45,1.02712795]
[1748058719871,1.47822637,664.22,663.46,1.84]
[1748058720072,1.47822637,664.3,663.46,1.84]
[1748058720773,1.47822637,664.3,663.47,1.664]
[1748058720974,1.47822637,664.3,663.47,3.456]
[1748058722877,1.47822637,664.31,663.47,3.456]
[1748058725779,1.47822637,664.34,663.47,3.456]
[1748058728480,1.47822637,664.32,663.47,3.456]
[1748058731379,1.47822637,664.37,663.47,3.456]
[1748058734981,1.47822637,664.44,663.47,3.456]
[1748058739286,1.47822637,664.42,663.47,3.456]
[1748058740987,1.47822637,664.42,663.47,1.664]
[1748058741786,1.47822637,664.42,663.46,1.84]
[1748058744388,1.47822637,664.38,663.46,1.84]
[1748058744786,1.47822637,664.38,663.47,2.849]
[1748058747590,1.47822637,664.36,663.47,2.849]
[1748058750392,1.47822637,664.31,663.47,2.849]
[1748058754095,1.47822637,664.28,663.47,2.849]
[1748058755093,1.47822637,664.28,663.48,1.661]
[1748058756797,1.47822637,664.27,663.48,1.661]
[1748058759897,1.47822637,664.19,663.48,1.661]
[1748058763794,1.47822637,664.18,663.48,1.661]
[1748058768099,1.47822637,664.18,663.49,1.287]
[1748058770695,1.47822637,664.16,663.49,1.287]
[1748058773902,1.47822637,664.19,663.49,1.287]
[1748058777603,1.47822637,664.07,663.49,1.287]
[1748058780407,1.47822637,664.1,663.49,1.287]
[1748058783513,1.47822637,664.08,663.49,1.287]
[1748058786112,1.47822637,664.08,663.5,1.521]
[1748058786411,1.47822637,664.12,663.5,1.521]
[1748058792213,1.47822637,664.3,663.5,1.521]
[1748058794617,1.47822637,664.3,663.51,1.304]
[1748058795416,1.47822637,664.13,663.51,1.304]
[1748058798717,1.47822637,664.12,663.51,1.304]
[1748058801715,1.47822637,664.07,663.51,1.304]
[1748058804417,1.47822637,664.0,663.51,1.304]
[1748058805025,1.47822637,664.0,663.52,2.042]
[1748058808127,1.47822637,664.05,663.52,2.042]
[1748058811927,1.47822637,664.08,663.52,2.042]
[1748058812927,1.47822637,664.08,663.53,1.674]
[1748058818230,1.47822637,664.06,663.53,1.674]
[1748058822536,1.47822637,664.06,663.54,1.538]
[1748058823439,1.47822637,664.08,663.54,1.538]
[1748058826039,1.47822637,664.07,663.54,1.538]
[1748058832245,1.47822637,664.03,663.54,1.538]
[1748058835450,1.47822637,664.16,663.54,1.538]
[1748058837653,1.47822637,664.15,663.54,1.538]
[1748058839454,1.47822637,664.15,663.55,1.602]
[1748058840754,1.47822637,664.14,663.55,1.602]
[1748058847162,1.47822637,663.99,663.55,1.602]
[1748058849463,1.47822637,663.99,663.56,1.984]
[1748058850165,1.47822637,663.98,663.56,1.984]
[1748058852767,1.47822637,663.97,663.56,1.984]
[1748058856973,1.47822637,664.01,663.56,1.984]
[1748058860776,1.47822637,664.05,663.56,1.984]
[1748058863978,2.21733955,664.19,663.56,1.984]
[1748058863979,1.47822637,664.04,663.56,1.984]
[1748058871194,1.47822637,664.03,663.56,1.984]
[1748058872895,1.47822637,664.03,663.56,3.651]
[1748058874897,1.47822637,664.02,663.56,3.651]
[1748058875197,1.47822637,664.02,663.56,5.066]
[1748058880401,1.47822637,664.01,663.56,5.066]
[1748058886110,1.47822637,664.08,663.56,5.066]
[1748058892319,1.47822637,664.13,663.56,5.066]
[1748058895521,0.26205017,664.65,663.56,5.066]
[1748058895522,1.47822637,664.16,663.56,5.066]
[1748058899727,1.47822637,664.18,663.56,5.066]
[1748058905127,1.47822637,664.18,663.56,6.09312795]
[1748058905327,1.47822637,664.16,663.56,6.09312795]
[1748058907425,1.47822637,664.2,663.56,5.066]
[1748058911433,1.47822637,664.18,663.56,5.066]
[1748058914136,1.47822637,664.22,663.56,5.066]
[1748058916839,1.47822637,664.2,663.56,5.066]
[1748058920035,1.47822637,664.22,663.56,5.066]
[1748058926447,1.47822637,664.2,663.56,5.066]
[1748058929650,2.21733955,664.34,663.56,5.066]
[1748058929651,1.47822637,664.19,663.56,5.066]
[1748058935553,1.47822637,664.18,663.56,5.066]
[1748058938157,1.47822637,664.16,663.56,5.066]
[1748058940961,1.47822637,664.12,663.56,6.09312795]
[1748058943960,1.47822637,664.15,663.56,5.066]
[1748058946762,1.47822637,664.15,663.57,1.02712795]
[1748058946962,1.47822637,664.13,663.57,1.02712795]
[1748058949567,1.47822637,664.13,663.58,1.831]
[1748058949871,1.47822637,664.13,663.58,3.562]
[1748058950269,1.47822637,664.15,663.58,3.562]
[1748058950870,1.47822637,664.15,663.59,1.751]
[1748058953271,1.47822637,664.13,663.59,1.751]
[1748058956276,1.47822637,664.13,663.63,1.02712795]
[1748058956481,1.47822637,664.33,663.63,1.02712795]
[1748058959573,1.47822637,664.33,663.59,1.751]
[1748058959574,1.47822637,664.35,663.66,1.02712795]
[1748058963680,1.47822637,664.37,663.66,1.02712795]
[1748058963885,1.47822637,664.37,663.63,1.02712795]
[1748058966786,1.47822637,664.38,663.62,1.02712795]
[1748058970488,1.47822637,664.42,663.6,1.02712795]
[1748058972889,1.47822637,664.4,663.61,1.02712795]
[1748058975791,1.11895658,664.24,663.61,1.02712795]
[1748058977995,1.11895658,664.24,663.62,1.377]
[1748058978295,1.11895658,664.21,663.65,1.02712795]
[1748058981999,1.11895658,664.22,663.65,1.02712795]
[1748058985004,1.11895658,664.22,663.66,1.02712795]
[1748058989408,1.11895658,664.22,663.67,1.337]
[1748058990904,1.11895658,664.3,663.7,1.02712795]
[1748058993811,1.11895658,664.3,663.71,2.095]
[1748058994012,1.11895658,664.31,663.71,2.095]
[1748058997611,1.11895658,664.32,663.71,2.095]
[1748059000617,1.11895658,664.3,663.71,2.095]
[1748059003814,1.11895658,664.34,663.71,2.095]
[1748059004921,1.11895658,664.34,663.67,1.337]
[1748059007222,0.26197126,664.84,663.67,2.36412795]
[1748059007223,1.11895658,664.33,663.67,2.36412795]
[1748059008723,1.11895658,664.33,663.68,1.689]
[1748059010424,1.11895658,664.33,663.68,3.315]
[1748059011120,1.11895658,664.34,663.7,1.02712795]
[1748059014131,1.11895658,664.31,663.73,1.02712795]
[1748059016837,1.11895658,664.28,663.75,1.02712795]
[1748059022643,1.11895658,664.26,663.76,1.02712795]
[1748059026046,1.11895658,664.23,663.77,1.02712795]
[1748059029550,1.11895658,664.24,663.68,3.315]
[1748059032953,1.11895658,664.07,663.68,3.315]
[1748059036355,1.47822637,664.2,663.68,3.315]
[1748059036356,1.11895658,664.08,663.68,3.315]
[1748059037056,1.11895658,664.08,663.68,5.18]
[1748059040060,1.11895658,664.1,663.68,5.18]
[1748059043660,1.11895658,664.09,663.68,5.18]
[1748059046060,0.26197126,664.84,663.68,5.18]
[1748059046061,1.11895658,664.11,663.68,5.18]
[1748059048360,1.11895658,664.13,663.68,5.18]
[1748059052264,1.11895658,664.14,663.68,5.18]
[1748059055466,1.11895658,664.15,663.68,5.18]
[1748059063176,1.11895658,664.17,663.68,5.18]
[1748059070276,1.11895658,664.15,663.68,5.18]
[1748059073587,1.11895658,664.1,663.68,5.18]
[1748059078588,1.11895658,664.12,663.68,5.18]
[1748059081392,1.11895658,664.11,663.68,5.18]
[1748059083993,1.11895658,664.09,663.68,5.18]
[1748059087696,1.11895658,664.13,663.68,5.18]
[1748059094102,1.11895658,664.17,663.68,5.18]
[1748059096899,1.11895658,664.18,663.68,5.18]
[1748059099608,1.11895658,664.25,663.68,5.18]
[1748059102812,1.11895658,664.37,663.77,1.02712795]
[1748059105914,1.11895658,664.41,663.78,1.854]
[1748059106716,1.11895658,664.41,663.79,2.045]
[1748059107114,1.11895658,664.41,663.8,1.749]
[1748059108416,1.11895658,664.43,663.8,1.749]
[1748059111814,1.11895658,664.44,663.8,1.749]
[1748059115218,1.11895658,664.45,663.8,1.749]
[1748059118716,1.47822637,664.6,663.8,1.749]
[1748059118717,1.11895658,664.72,663.8,1.749]
[1748059122020,1.11895658,664.77,663.8,2.77612795]
[1748059125024,1.11895658,664.74,663.84,1.02712795]
[1748059128525,1.11895658,664.74,663.85,1.698]
[1748059128827,1.11895658,664.76,663.85,1.698]
[1748059131122,1.11895658,664.78,663.85,1.698]
[1748059131328,1.11895658,664.78,663.86,1.02712795]
[1748059135026,1.11895658,664.75,663.9,1.02712795]
[1748059137837,0.26188353,665.14,663.88,1.02712795]
[1748059137838,1.11895658,664.77,663.88,1.02712795]
[1748059139037,1.11895658,664.77,663.89,1.927]
[1748059139237,1.11895658,664.77,663.9,1.843]
[1748059140937,1.11895658,664.74,663.9,1.843]
[1748059144037,1.11895658,664.83,663.9,1.843]
[1748059147540,1.11895658,664.81,663.9,1.843]
[1748059153542,1.11895658,664.73,663.9,2.87012795]
[1748059156748,1.11895658,664.72,663.9,2.87012795]
[1748059156950,1.11895658,664.72,663.91,1.02712795]
[1748059159751,1.11895658,664.67,663.95,1.02712795]
[1748059162154,1.11895658,664.67,663.96,1.315]
[1748059162854,1.11895658,664.67,663.96,2.34212795]
[1748059163556,1.11895658,664.67,663.97,1.432]
[1748059166056,1.11895658,664.64,663.99,1.02712795]
[1748059169261,1.11895658,664.57,663.97,1.432]
[1748059171665,1.11895658,664.56,663.97,1.432]
[1748059175869,1.11895658,664.6,663.97,1.432]
[1748059179468,1.11895658,664.56,663.97,1.432]
[1748059182874,1.11895658,664.57,663.97,1.432]
[1748059183173,1.11895658,664.57,663.98,1.439]
[1748059185877,1.11895658,664.57,663.99,1.838]
[1748059186073,1.11895658,664.51,663.99,1.838]
[1748059188678,1.11895658,664.53,663.99,1.838]
[1748059194482,1.11895658,664.51,663.99,1.838]
[1748059194982,1.11895658,664.51,664.0,1.642]
[1748059198180,1.11895658,664.54,664.0,1.642]
[1748059204788,1.11895658,664.5,664.0,1.642]
[1748059207489,1.11895658,664.48,664.0,1.642]
[1748059210893,1.11895658,664.35,664.0,1.642]
[1748059212790,1.11895658,664.35,664.01,1.659]
[1748059213791,1.11895658,664.36,664.01,1.659]
[1748059217489,1.11895658,664.37,664.01,1.659]
[1748059223797,1.11895658,664.37,664.0,1.642]
[1748059226899,1.11895658,664.37,664.01,1.727]
[1748059227702,1.11895658,664.32,664.01,1.727]
[1748059233807,1.11895658,664.39,664.01,1.727]
[1748059236609,1.11895658,664.38,664.01,1.727]
[1748059237606,1.11895658,664.38,664.02,1.779]
[1748059237808,1.11895658,664.38,664.02,3.022]
[1748059238910,1.11895658,664.39,664.02,3.022]
[1748059241721,1.11895658,664.52,664.02,3.022]
[1748059244020,1.11895658,664.54,664.02,3.022]
[1748059247919,1.11895658,664.42,664.02,3.022]
[1748059250326,1.11895658,664.42,664.03,1.546]
[1748059251226,1.11895658,664.4,664.03,1.546]
[1748059254230,1.11895658,664.39,664.03,1.546]
[1748059261036,1.11895658,664.36,664.03,1.546]
[1748059261536,1.11895658,664.36,664.04,1.577]
[1748059265345,1.11895658,664.44,664.04,1.577]
[1748059265742,1.11895658,664.44,664.05,1.426]
[1748059267939,1.11895658,664.53,664.05,1.426]
[1748059271646,0.26181851,665.3,664.06,1.02712795]
[1748059271647,1.11895658,664.78,664.06,1.02712795]
[1748059275148,1.11895658,664.84,664.05,1.426]
[1748059277353,1.11895658,664.84,664.06,1.322]
[1748059277851,1.11895658,664.85,664.06,1.322]
[1748059280255,1.11895658,664.85,664.06,2.728]
[1748059281356,1.11895658,664.82,664.06,2.728]
[1748059284759,1.11895658,664.85,664.06,2.728]